bitfinex/quotes_ETHUSD_20250323
["timestamp","ask_amount","ask_price","bid_price","bid_amount"]
[1742716497447,4.96652,2013.5,2013.1,4.97728]
[1742716497847,4.96681,2013.4,2013.1,0.01]
[1742716498347,4.96681,2013.4,2013.2,0.10863503]
[1742716498770,4.96681,2013.4,2013.1,0.01]
[1742716499075,4.96681,2013.4,2013.3,0.10863503]
[1742716499278,4.96681,2013.4,2013.1,0.01]
[1742716499573,4.96681,2013.4,2013.3,0.10863503]
[1742716499742,71.6239117,2012.8,2012.7,5.51845]
[1742716499947,65.84602552,2012.8,2012.7,45.45033274]
[1742716500148,65.84602552,2012.8,2012.7,42.94739137]
[1742716501081,65.84602552,2012.8,2012.7,43.31666634]
[1742716502755,65.84602552,2012.8,2012.7,44.11656634]
[1742716502954,65.84602552,2012.8,2012.7,41.10456634]
[1742716503156,65.84602552,2012.8,2012.7,44.10456634]
[1742716504653,65.84602552,2012.8,2012.7,41.60162497]
[1742716504858,65.84602552,2012.8,2012.7,44.10456634]
[1742716506153,65.84602552,2012.8,2012.7,46.60750771]
[1742716506357,65.84602552,2012.8,2012.7,44.10456634]
[1742716513110,65.84602552,2012.8,2012.7,44.21283006]
[1742716513415,65.84602552,2012.8,2012.7,43.76155509]
[1742716514517,65.84602552,2012.8,2012.7,44.13209209]
[1742716515315,0.7905,2013.4,2012.7,28.87248359]
[1742716515470,5.75732,2013.4,2013.0,4.9677]
[1742716515672,7.07999414,2013.4,2012.9,4.96791]
[1742716516076,7.07999414,2013.4,2013.0,0.09952024]
[1742716516275,2.11317414,2013.4,2013.0,5.06709024]
[1742716516515,0.7905,2013.4,2013.1,5.546]
[1742716517012,0.7905,2013.4,2013.2,0.09952024]
[1742716517375,0.7905,2013.4,2013.1,5.546]
[1742716517575,0.7905,2013.4,2013.3,0.09952024]
[1742716517815,5.71679,2013.6,2013.1,10.51323]
[1742716517990,4.96659,2013.5,2013.3,0.09952024]
[1742716518193,4.96659,2013.5,2013.1,5.546]
[1742716518592,4.96659,2013.5,2013.2,0.09952024]
[1742716518992,9.93328,2013.5,2013.1,5.546]
[1742716519210,4.96672,2013.4,2013.3,0.09952024]
[1742716519379,4.96672,2013.4,2013.1,5.546]
[1742716519690,4.96672,2013.4,2013.3,0.09952024]
[1742716519893,4.96672,2013.4,2013.1,5.546]
[1742716520125,4.96672,2013.4,2013.3,0.09952024]
[1742716520304,4.96672,2013.4,2013.1,5.546]
[1742716520507,4.96672,2013.4,2013.3,0.09952024]
[1742716520815,4.96659,2013.5,2013.1,5.546]
[1742716521118,9.93318,2013.5,2013.3,0.09952024]
[1742716521336,9.93318,2013.5,2013.1,5.546]
[1742716521337,13.41998362,2013.5,2013.1,5.546]
[1742716521822,4.96679,2013.4,2013.1,5.546]
[1742716524518,8.45333362,2013.5,2013.1,5.546]
[1742716529942,4.96673,2013.4,2013.1,5.546]
[1742716530244,6.54564148,2013.4,2013.1,5.546]
[1742716530621,2.50294137,2013.3,2013.0,26.261]
[1742716530955,4.96746,2013.1,2013.0,26.261]
[1742716531520,4.96746,2013.1,2013.0,26.49568613]
[1742716534108,7.47021137,2013.2,2013.0,26.49568613]
[1742716534310,4.96727,2013.2,2013.0,26.49568613]
[1742716534753,8.26000137,2013.1,2013.0,26.49568613]
[1742716536242,11.26000137,2013.1,2013.0,0.23468613]
[1742716536446,11.81000137,2013.1,2013.0,0.23468613]
[1742716536611,4.9693,2012.4,2012.0,5.408]
[1742716536817,12.44165137,2012.4,2012.0,5.408]
[1742716537016,4.96946,2012.3,2012.1,0.23691211]
[1742716537234,7.47224137,2012.4,2012.1,0.23691211]
[1742716537235,7.47220137,2012.4,2012.1,0.23691211]
[1742716537433,4.96955,2012.3,2012.1,0.23691211]
[1742716537635,4.96955,2012.3,2011.9,31.668]
[1742716537848,4.96955,2012.3,2012.2,0.23783981]
[1742716538144,0.7896,2012.4,2012.2,0.23783981]
[1742716538439,8.26180137,2012.4,2011.9,36.63827]
[1742716538657,8.26180137,2012.4,2011.7,0.1274]
[1742716538658,7.23490156,2012.2,2011.7,4.97082]
[1742716538825,2.26510156,2012.2,2012.0,0.21801983]
[1742716539160,4.96944,2012.3,2012.1,0.19819984]
[1742716539338,4.96944,2012.3,2011.8,4.97053]
[1742716539525,9.93971,2012.2,2011.9,0.19819984]
[1742716539725,4.97004,2012.1,2011.7,10.37388]
[1742716539921,4.97004,2012.1,2011.8,5.57957629]
[1742716540534,4.97004,2012.1,2011.8,5.57657629]
[1742716540722,4.97027,2012.0,2011.8,5.57657629]
[1742716541063,4.97027,2012.0,2011.8,0.18357629]
[1742716541262,9.94066,2012.0,2011.8,5.57257629]
[1742716541451,4.97013,2012.1,2011.8,5.389]
[1742716541655,4.97013,2012.1,2011.9,0.18357629]
[1742716541844,7.96961,2012.3,2011.9,0.18357629]
[1742716542037,10.47227415,2012.3,2011.9,5.57157629]
[1742716542237,4.96969,2012.2,2011.9,5.388]
[1742716542557,4.96969,2012.2,2012.0,0.18357629]
[1742716542859,4.96993,2012.1,2012.0,0.18357629]
[1742716543531,7.47263137,2012.2,2012.0,0.18357629]
[1742716543942,12.44251137,2012.2,2012.0,0.18357629]
[1742716544145,14.14834052,2012.2,2012.0,0.18357629]
[1742716545161,9.17846052,2012.2,2012.0,0.18357629]
[1742716545463,6.67564915,2012.2,2012.0,0.18357629]
[1742716545658,4.11872151,2012.4,2012.0,0.18357629]
[1742716545659,1.61578014,2012.4,2012.0,0.18357629]
[1742716545960,4.96944,2012.3,2012.0,0.18357629]
[1742716546134,4.96982,2012.2,2012.0,0.18357629]
[1742716546334,9.93973,2012.2,2012.0,0.18357629]
[1742716546556,4.96993,2012.1,2012.0,0.18357629]
[1742716546945,6.21419914,2012.1,2012.0,0.18357629]
[1742716548265,4.96982,2012.2,2012.0,0.18357629]
[1742716548650,1.61578014,2012.4,2012.0,0.18357629]
[1742716548651,6.58497014,2012.4,2012.0,0.18357629]
[1742716548852,4.96945,2012.3,2012.0,0.18357629]
[1742716552067,4.96977,2012.2,2012.0,0.18357629]
[1742716552559,4.96969,2012.2,2012.0,0.18357629]
[1742716552760,4.96944,2012.3,2012.0,0.18357629]
[1742716553611,7.96869,2012.6,2012.0,0.18357629]
[1742716553739,4.96898,2012.5,2012.1,4.9697]
[1742716553941,4.9692,2012.4,2012.0,4.97013]
[1742716554186,4.9692,2012.4,2012.1,0.18357629]
[1742716555080,6.61276741,2012.6,2012.1,5.15337629]
[1742716555271,4.96881,2012.6,2012.1,5.15337629]
[1742716555583,4.96904,2012.5,2012.1,5.15337629]
[1742716555780,4.96881,2012.6,2012.1,5.15335629]
[1742716555944,4.96846,2012.7,2012.3,5.0968]
[1742716556277,0.993666,2012.7,2012.4,5.51654888]
[1742716557191,7.47096137,2012.9,2012.4,10.48571888]
[1742716557494,2.50294137,2012.9,2012.4,5.51654888]
[1742716557660,7.47096137,2012.9,2012.4,10.48568888]
[1742716558359,4.96837,2012.8,2012.4,5.51654888]
[1742716558559,0.79,2013.8,2012.6,3.1274]
[1742716558746,0.1,2014.7,2012.6,3.1274]
[1742716558747,0.98365713,2014.2,2013.9,0.1274]
[1742716558941,0.79,2014.8,2014.0,34.35249025]
[1742716559186,9.92728,2014.7,2014.2,2.50294137]
[1742716559494,3.29294137,2014.5,2014.1,5.391]
[1742716559644,3.29294137,2014.5,2013.5,1.01799505]
[1742716559645,2.50294137,2014.3,2013.7,5.396]
[1742716559849,4.96534,2014.0,2013.7,5.396]
[1742716560248,4.96527,2014.0,2013.7,5.396]
[1742716560447,5.395,2014.5,2013.7,5.396]
[1742716560448,0.1,2015.3,2013.8,2.50294137]
[1742716560646,5.75307,2014.9,2014.3,7.46733137]
[1742716560858,6.034956,2014.8,2014.3,7.97194137]
[1742716561473,4.96353,2014.7,2014.3,7.97194137]
[1742716561871,6.034956,2014.8,2014.3,7.97194137]
[1742716561872,10.998416,2014.8,2014.3,7.97194137]
[1742716562095,6.034956,2014.8,2014.3,7.97194137]
[1742716562601,4.96361,2014.7,2014.3,7.97194137]
[1742716562806,1.0998466,2014.6,2014.3,7.97194137]
[1742716563818,9.92725,2014.7,2014.3,5.469]
[1742716564094,4.96234,2015.2,2014.6,5.09103]
[1742716564260,3.26714137,2015.8,2014.8,2.50294137]
[1742716564466,4.96119,2015.7,2015.1,4.96239]
[1742716564693,1.31891414,2015.6,2015.1,4.96239]
[1742716564897,1.31891414,2015.6,2015.3,4.96198]
[1742716565065,4.9614,2015.6,2015.3,5.563]
[1742716565460,0.7642,2015.8,2015.3,5.563]
[1742716565692,4.96165,2015.5,2015.3,5.563]
[1742716565880,4.96216,2015.3,2015.1,31.817]
[1742716566080,5.954544,2015.3,2015.1,31.817]
[1742716566262,0.992384,2015.3,2015.1,31.817]
[1742716566586,4.96184,2015.4,2015.1,31.817]
[1742716567164,4.96228,2015.2,2015.1,31.817]
[1742716567497,4.96218,2015.3,2015.1,31.96449679]
[1742716567898,4.96228,2015.2,2015.1,31.96449679]
[1742716568086,7.46522137,2015.2,2015.1,31.96449679]
[1742716568263,9.96834051,2015.2,2015.1,0.14749679]
[1742716568463,4.96323,2014.9,2014.7,5.564]
[1742716568691,9.92639,2014.9,2014.5,26.3814]
[1742716568893,4.96343,2014.8,2014.6,5.563]
[1742716569095,2.50311914,2015.2,2014.7,0.13520539]
[1742716569312,4.96302,2015.0,2014.7,0.13520539]
[1742716569665,4.96308,2014.9,2014.7,0.13520539]
[1742716569966,9.92586,2015.0,2014.7,0.13520539]
[1742716570282,4.96288,2015.0,2014.7,0.13520539]
[1742716570491,9.92585,2015.0,2014.7,0.13520539]
[1742716570690,4.95957,2016.3,2014.8,2.63034137]
[1742716570864,4.96116,2015.7,2015.2,4.96228]
[1742716571064,4.96165,2015.5,2015.3,5.602]
[1742716571284,4.96179,2015.4,2015.3,0.13520539]
[1742716571494,8.70736951,2015.4,2015.3,0.13520539]
[1742716571695,8.70736951,2015.4,2015.1,5.602]
[1742716571696,4.96213,2015.3,2015.1,5.602]
[1742716571898,4.96228,2015.2,2015.1,5.602]
[1742716572105,4.96213,2015.3,2015.1,5.602]
[1742716573068,4.96213,2015.3,2015.2,0.13520539]
[1742716573385,6.32907995,2015.3,2015.2,0.13520539]
[1742716574279,4.96213,2015.3,2015.2,0.13520539]
[1742716576818,8.79033,2015.3,2015.2,0.13520539]
[1742716577340,4.96277,2015.0,2014.9,26.25]
[1742716577889,4.9634,2014.8,2014.4,0.1274]
[1742716578106,4.96363,2014.7,2014.5,26.244]
[1742716578691,4.96376,2014.6,2014.5,26.244]
[1742716583642,6.78594214,2014.6,2014.5,26.244]
[1742716583810,4.96488,2014.2,2014.0,5.516]
[1742716584125,7.46779137,2014.2,2014.0,5.516]
[1742716584295,4.96499,2014.1,2014.0,5.516]
[1742716585126,4.96524,2014.0,2013.9,26.244]
[1742716585824,4.96604,2013.7,2013.6,5.504]
[1742716588105,4.96604,2013.7,2013.6,5.63749606]
[1742716589129,4.96574,2013.8,2013.6,5.63749606]
[1742716591228,9.93165,2013.8,2013.6,5.63749606]
[1742716591432,5.7929,2014.3,2013.6,5.63749606]
[1742716591433,9.93084,2014.0,2013.6,5.63749606]
[1742716591731,4.96557,2013.9,2013.6,5.63749606]
[1742716591931,4.96537,2014.0,2013.6,5.63749606]
[1742716592102,4.96537,2014.0,2013.6,15.56961606]
[1742716592297,4.96537,2014.0,2013.6,10.60353606]
[1742716593103,9.93083,2014.0,2013.6,10.60353606]
[1742716593303,4.9655,2013.9,2013.6,5.63749606]
[1742716594042,4.96537,2014.0,2013.6,10.60368606]
[1742716594406,4.96537,2014.0,2013.6,15.56974606]
[1742716594630,4.96501,2014.1,2013.7,4.96592]
[1742716594938,4.96527,2014.0,2013.8,0.14052223]
[1742716595141,4.96527,2014.0,2013.6,10.47006]
[1742716595336,4.96527,2014.0,2013.7,0.14052223]
[1742716595638,4.96527,2014.0,2013.6,10.47006]
[1742716595838,9.93023,2014.1,2013.8,0.14052223]
[1742716596142,4.96501,2014.1,2013.9,0.14052223]
[1742716596324,4.96501,2014.1,2013.8,0.1274]
[1742716596528,4.96501,2014.1,2013.9,0.14052223]
[1742716596719,9.93021,2014.1,2013.8,0.1274]
[1742716596919,9.93021,2014.1,2013.9,0.14052223]
[1742716597243,9.93021,2014.1,2013.8,0.1274]
[1742716597442,9.93021,2014.1,2014.0,0.14052223]
[1742716597611,9.93021,2014.1,2013.8,0.1274]
[1742716597813,9.93021,2014.1,2013.9,0.14052223]
[1742716598006,4.96527,2014.0,2013.8,0.1274]
[1742716599710,0.8282,2014.3,2013.8,0.1274]
[1742716599929,4.96497,2014.2,2013.8,0.1274]
[1742716600122,4.96493,2014.2,2013.8,5.0931]
[1742716600752,9.92988,2014.2,2013.8,5.0931]
[1742716600913,4.96493,2014.2,2013.8,10.0588]
[1742716601444,4.96456,2014.3,2013.9,4.96546]
[1742716601818,5.9524301,2014.8,2014.1,5.0923]
[1742716601819,4.96418,2014.5,2014.1,5.0923]
[1742716603153,4.96418,2014.5,2014.2,0.14052223]
[1742716604013,4.96385,2014.6,2014.2,5.10525223]
[1742716604209,4.96385,2014.6,2014.2,10.06983223]
[1742716604451,5.72083,2014.9,2014.4,4.96411]
[1742716604753,5.72083,2014.9,2014.2,26.39252223]
[1742716604754,9.92739,2014.7,2014.5,5.52844035]
[1742716605350,9.92733,2014.7,2014.5,5.52844035]
[1742716605649,7.46670137,2014.6,2014.5,5.52844035]
[1742716606681,7.46670137,2014.6,2014.5,0.13844035]
[1742716607031,9.92833,2014.5,2014.2,31.636]
[1742716607224,4.96367,2014.7,2014.5,0.12690366]
[1742716607437,4.96376,2014.6,2014.3,4.96447]
[1742716607643,4.96376,2014.6,2014.2,31.636]
[1742716607644,4.96402,2014.5,2014.2,31.636]
[1742716608823,9.92776,2014.6,2014.2,36.60074]
[1742716609169,4.96403,2014.5,2014.2,36.60074]
[1742716611170,4.96381,2014.6,2014.2,36.60074]
[1742716613375,4.96401,2014.5,2014.2,36.60074]
[1742716613695,4.96381,2014.6,2014.2,36.60074]
[1742716614160,4.96404,2014.5,2014.2,31.636]
[1742716616404,4.96404,2014.5,2014.2,36.60074]
[1742716616577,4.96404,2014.5,2014.2,31.636]
[1742716617193,4.9643,2014.4,2014.2,31.636]
[1742716618204,4.9643,2014.4,2014.3,0.12671882]
[1742716618405,4.9643,2014.4,2014.2,31.636]
[1742716618605,4.9643,2014.4,2014.3,0.12671882]
[1742716618810,4.9643,2014.4,2014.2,31.636]
[1742716618966,4.9643,2014.4,2014.3,0.12671882]
[1742716619167,4.9643,2014.4,2014.2,31.636]
[1742716619368,4.9643,2014.4,2014.3,0.12671882]
[1742716619583,4.9643,2014.4,2014.2,31.636]
[1742716619922,4.9643,2014.4,2014.3,0.12671882]
[1742716620208,4.9643,2014.4,2014.2,31.636]
[1742716620406,4.96404,2014.5,2014.3,0.12671882]
[1742716620708,4.96404,2014.5,2014.2,31.636]
[1742716620874,4.96341,2014.8,2014.4,5.09076882]
[1742716621067,4.96341,2014.8,2014.4,4.96405]
[1742716621068,9.92691,2014.8,2014.4,4.96405]
[1742716621290,9.92691,2014.8,2014.5,0.12671882]
[1742716621899,4.96341,2014.8,2014.5,0.12671882]
[1742716622105,9.92679,2014.8,2014.5,0.12671882]
[1742716623239,4.96351,2014.7,2014.5,0.12671882]
[1742716624131,4.96351,2014.7,2014.6,5.282]
[1742716624336,4.96351,2014.7,2014.6,5.40871882]
[1742716625134,4.96329,2014.8,2014.6,5.40871882]
[1742716628036,9.92679,2014.8,2014.6,5.40871882]
[1742716628345,4.96329,2014.8,2014.6,5.40871882]
[1742716628509,9.92666,2014.8,2014.6,5.40871882]
[1742716628929,4.96351,2014.7,2014.6,0.12671882]
[1742716629132,4.96277,2015.0,2014.6,0.12671882]
[1742716629311,4.96338,2014.8,2014.5,5.251]
[1742716629517,4.96338,2014.8,2014.7,0.12491631]
[1742716629719,4.96376,2014.6,2014.5,5.251]
[1742716630148,4.96411,2014.5,2014.3,5.246]
[1742716630303,9.92832,2014.5,2014.3,5.246]
[1742716630642,4.96425,2014.4,2014.3,5.246]
[1742716631136,4.96411,2014.5,2014.3,5.246]
[1742716631349,9.92826,2014.5,2014.3,5.246]
[1742716631700,4.96411,2014.5,2014.3,5.246]
[1742716632021,4.96411,2014.5,2014.2,31.488]
[1742716632022,4.96425,2014.4,2014.2,31.488]
[1742716633439,4.96425,2014.4,2014.3,0.1248701]
[1742716633936,4.96425,2014.4,2014.2,31.48]
[1742716634135,4.96425,2014.4,2014.3,0.1248701]
[1742716634505,4.96425,2014.4,2014.2,31.48]
[1742716634705,4.96425,2014.4,2014.3,0.1248701]
[1742716635443,4.96425,2014.4,2014.2,31.48]
[1742716635744,4.96425,2014.4,2014.3,0.12630293]
[1742716636102,4.96425,2014.4,2014.2,31.48]
[1742716636345,4.96425,2014.4,2014.3,0.12630293]
[1742716636705,4.96425,2014.4,2014.2,31.48]
[1742716636905,4.96425,2014.4,2014.3,0.12630293]
[1742716637620,4.96425,2014.4,2014.2,31.48]
[1742716637820,4.96425,2014.4,2014.3,0.12630293]
[1742716638329,4.96425,2014.4,2014.2,31.48]
[1742716638632,4.96425,2014.4,2014.3,0.12630293]
[1742716639031,5.79551,2014.7,2014.2,33.98294137]
[1742716639238,4.96386,2014.6,2014.3,0.12630293]
[1742716639695,4.96386,2014.6,2014.2,38.94758137]
[1742716639895,4.96386,2014.6,2014.4,0.12736597]
[1742716640120,4.96386,2014.6,2014.2,38.94758137]
[1742716640309,4.96386,2014.6,2014.5,0.12736597]
[1742716640508,4.96386,2014.6,2014.2,38.94758137]
[1742716640729,4.96386,2014.6,2014.5,0.12736597]
[1742716640933,4.96386,2014.6,2014.2,36.44464]
[1742716641108,4.96386,2014.6,2014.5,0.12736597]
[1742716641313,4.96386,2014.6,2014.2,36.44464]
[1742716641619,4.96386,2014.6,2014.2,31.48]
[1742716641808,4.96386,2014.6,2014.3,0.12736597]
[1742716642235,10.75924,2014.7,2014.2,36.44471]
[1742716642435,10.75924,2014.7,2014.4,0.12736597]
[1742716642737,4.9638,2014.6,2014.2,36.44471]
[1742716642910,4.9638,2014.6,2014.5,0.12736597]
[1742716643116,4.9638,2014.6,2014.2,36.44471]
[1742716643310,4.9638,2014.6,2014.5,0.12736597]
[1742716643517,4.9638,2014.6,2014.2,36.44471]
[1742716643935,4.9638,2014.6,2014.3,0.12736597]
[1742716644148,4.9638,2014.6,2014.3,0.4619928]
[1742716644463,4.9638,2014.6,2014.4,0.12736597]
[1742716645631,4.96401,2014.5,2014.4,0.12736597]
[1742716647149,6.039981,2014.5,2014.4,0.12736597]
[1742716647350,4.9645,2014.3,2014.2,26.252]
[1742716647535,4.96531,2014.0,2013.8,5.158]
[1742716647738,4.9655,2013.9,2013.8,5.158]
[1742716648426,4.9655,2013.9,2013.8,5.27285525]
[1742716651686,9.93058,2014.0,2013.8,5.27285525]
[1742716651892,9.93065,2014.0,2013.8,5.27285525]
[1742716652392,9.9306,2014.0,2013.8,5.27285525]
[1742716653591,4.96548,2013.9,2013.8,5.27285525]
[1742716655860,4.96548,2013.9,2013.8,0.11485525]
[1742716656498,4.96585,2013.8,2013.6,5.12]
[1742716656985,4.96613,2013.7,2013.5,26.247]
[1742716657166,4.96613,2013.7,2013.5,31.363]
[1742716657681,4.96622,2013.6,2013.5,31.363]
[1742716661500,4.96622,2013.6,2013.5,31.47560232]
[1742716663470,4.96622,2013.6,2013.5,26.35960232]
[1742716666810,4.96622,2013.6,2013.5,0.11260232]
[1742716667320,4.96622,2013.6,2013.3,5.46298649]
[1742716667676,4.96622,2013.6,2013.4,0.11260232]
[1742716668415,9.93264,2013.6,2013.4,0.11260232]
[1742716669312,4.96622,2013.6,2013.4,0.11260232]
[1742716669905,9.93264,2013.6,2013.4,0.11260232]
[1742716670102,4.96647,2013.5,2013.4,0.11260232]
[1742716672720,4.96629,2013.6,2013.4,0.11260232]
[1742716674115,4.96647,2013.5,2013.4,0.11260232]
[1742716680323,6.21004014,2013.5,2013.4,0.11260232]
[1742716681397,4.96693,2013.4,2013.2,5.3940908]
[1742716681718,4.96693,2013.4,2013.3,0.10495862]
[1742716682527,8.29317137,2013.4,2013.3,0.10495862]
[1742716682798,4.96761,2013.1,2012.8,5.007]
[1742716683000,4.96761,2013.1,2012.9,0.10495862]
[1742716683001,9.9353,2013.1,2012.9,0.10495862]
[1742716683509,4.9677,2013.0,2012.9,0.84566651]
[1742716684397,4.96724,2013.2,2012.9,0.84566651]
[1742716684605,4.96746,2013.1,2012.9,0.84566651]
[1742716685623,4.96746,2013.1,2013.0,0.74070789]
[1742716685989,4.96746,2013.1,2013.0,0.84695781]
[1742716686626,4.96746,2013.1,2013.0,0.10624992]
[1742716687927,4.96746,2013.1,2013.0,0.84695781]
[1742716688130,4.96648,2013.5,2013.1,4.96729]
[1742716688304,4.96677,2013.4,2013.0,5.94204781]
[1742716688493,4.96677,2013.4,2013.0,5.83579789]
[1742716688821,4.96677,2013.4,2013.1,0.10624992]
[1742716689127,4.96677,2013.4,2013.2,4.993]
[1742716689691,4.96677,2013.4,2013.3,0.10624992]
[1742716691537,4.9666,2013.5,2013.3,0.10624992]
[1742716692129,4.96672,2013.4,2013.3,0.10624992]
[1742716692292,4.96653,2013.5,2013.3,0.10624992]
[1742716692828,4.96653,2013.5,2013.3,0.84619735]
[1742716693931,4.96672,2013.4,2013.3,0.84619735]
[1742716694495,4.96672,2013.4,2013.3,0.10624992]
[1742716701731,4.96637,2013.6,2013.3,0.10624992]
[1742716702037,4.9665,2013.5,2013.3,0.10624992]
[1742716702234,4.96628,2013.6,2013.3,0.846482]
[1742716703335,4.96648,2013.5,2013.3,0.10624992]
[1742716706537,5.40878071,2013.0,2012.9,11.02089137]
[1742716706738,5.40878071,2013.0,2012.9,37.28189137]
[1742716707731,5.40878071,2013.0,2012.9,41.66889137]
[1742716707930,5.40878071,2013.0,2012.9,34.93544493]
[1742716708231,5.40878071,2013.0,2012.9,35.03353244]
[1742716709410,5.40878071,2013.0,2012.9,30.09953244]
[1742716709607,5.40878071,2013.0,2012.9,27.09953244]
[1742716709922,5.40878071,2013.0,2012.9,32.03153244]
[1742716710632,5.40878071,2013.0,2012.9,27.09953244]
[1742716710809,5.40878071,2013.0,2012.9,32.02853244]
[1742716711232,5.40878071,2013.0,2012.9,31.28808751]
[1742716711630,5.40878071,2013.0,2012.9,32.028865]
[1742716711833,10.37648071,2013.0,2012.9,32.028865]
[1742716712731,5.40878071,2013.0,2012.9,32.028865]
[1742716718131,10.37648071,2013.0,2012.9,32.028865]
[1742716718853,5.40878071,2013.0,2012.9,32.028865]
[1742716720069,10.37648071,2013.0,2012.9,32.028865]
[1742716723612,10.37648071,2013.0,2012.9,31.28808751]
[1742716724507,5.40878071,2013.0,2012.9,31.28808751]
[1742716725663,5.40878071,2013.0,2012.9,32.028663]
[1742716726471,5.40878071,2013.0,2012.9,36.996613]
[1742716728869,5.40878071,2013.0,2012.9,39.49955437]
[1742716729872,5.40878071,2013.0,2012.9,36.953613]
[1742716730235,5.40878071,2013.0,2012.9,31.985663]
[1742716731751,5.40878071,2013.0,2012.9,31.982663]
[1742716733892,6.21878071,2013.0,2012.9,31.976663]
[1742716736296,12.55541492,2013.0,2012.9,27.099663]
[1742716737700,12.55541492,2013.0,2012.9,26.35908751]
[1742716737995,15.05835629,2013.0,2012.9,0.09808751]
[1742716738499,4.96821,2012.8,2012.5,4.866]
[1742716738801,4.96821,2012.8,2012.4,4.96909]
[1742716738962,4.96821,2012.8,2012.6,0.74169378]
[1742716739595,9.93663,2012.8,2012.6,0.74169378]
[1742716739796,4.96845,2012.7,2012.6,5.61769378]
[1742716740300,4.96887,2012.6,2012.3,26.264]
[1742716740458,4.96887,2012.6,2012.5,4.872]
[1742716742005,1.48970872,2012.7,2012.5,5.61360729]
[1742716742210,5.77846,2012.7,2012.5,5.61360729]
[1742716742815,5.77846,2012.7,2012.5,4.872]
[1742716744272,4.96869,2012.6,2012.5,4.872]
[1742716744967,4.96919,2012.4,2012.3,26.264]
[1742716745612,7.04449914,2012.4,2012.3,31.123]
[1742716745923,7.04449914,2012.4,2012.3,26.264]
[1742716747488,9.54744051,2012.4,2012.3,26.264]
[1742716747919,4.96993,2012.1,2012.0,4.856]
[1742716748302,9.54744051,2012.4,2012.0,4.856]
[1742716748303,9.54767051,2012.4,2012.0,4.856]
[1742716748599,9.93916,2012.3,2012.0,4.856]
[1742716748804,9.93916,2012.3,2011.8,4.97054]
[1742716748805,0.7667,2011.9,2011.5,0.98912253]
[1742716749119,7.47395137,2011.7,2011.0,4.97241]
[1742716749426,4.97106,2011.7,2011.6,0.09819429]
[1742716749717,8.24007137,2011.9,2011.0,9.9334]
[1742716749718,4.97143,2011.5,2011.0,9.9334]
[1742716750080,4.97143,2011.5,2011.0,4.961]
[1742716750302,4.97201,2011.3,2010.9,2.50294137]
[1742716750508,4.97201,2011.3,2011.0,4.959]
[1742716751410,4.97217,2011.2,2011.0,4.959]
[1742716753017,4.97201,2011.3,2011.0,4.959]
[1742716753232,8.24185137,2011.2,2011.1,0.10340896]
[1742716753513,8.24185137,2011.2,2010.7,0.3656151]
[1742716753514,4.97314,2010.8,2010.7,0.3656151]
[1742716753700,4.97314,2010.8,2010.7,5.3496151]
[1742716753907,4.97314,2010.8,2010.7,4.984]
[1742716755290,4.97324,2010.8,2010.6,4.978]
[1742716755603,4.97282,2011.0,2010.6,4.978]
[1742716755807,4.97307,2010.9,2010.6,4.978]
[1742716756005,4.97316,2010.8,2010.6,4.978]
[1742716756219,0.7644,2010.7,2010.0,0.1191179]
[1742716756426,4.97432,2010.4,2010.0,5.0941279]
[1742716756635,4.97432,2010.4,2010.2,5.009]
[1742716756818,4.97438,2010.3,2010.2,5.009]
[1742716757198,4.9742,2010.4,2010.2,5.009]
[1742716757798,4.97372,2010.6,2010.2,5.009]
[1742716757994,4.97406,2010.5,2010.2,5.009]
[1742716758406,4.97417,2010.4,2010.2,5.009]
[1742716758612,4.9739,2010.5,2010.2,5.009]
[1742716759096,4.97414,2010.4,2010.2,5.009]
[1742716759999,4.97438,2010.3,2010.2,5.009]
[1742716760857,4.97414,2010.4,2010.2,5.009]
[1742716761021,4.97408,2010.5,2010.2,5.009]
[1742716761215,4.97414,2010.4,2010.2,5.009]
[1742716762143,9.94838,2010.4,2010.2,5.009]
[1742716762454,9.94842,2010.4,2010.2,5.009]
[1742716762751,4.97414,2010.4,2010.2,5.009]
[1742716762925,4.97438,2010.3,2010.2,5.009]
[1742716763758,4.9739,2010.5,2010.2,5.009]
[1742716764161,9.948,2010.5,2010.2,5.009]
[1742716764322,4.97413,2010.4,2010.2,5.009]
[1742716764651,5.73801,2010.7,2010.2,9.98361]
[1742716764852,4.97371,2010.6,2010.2,9.98361]
[1742716765765,9.94756,2010.6,2010.2,9.98361]
[1742716765971,4.9734,2010.7,2010.2,9.98352]
[1742716766153,4.97378,2010.6,2010.2,9.98352]
[1742716766357,4.9739,2010.5,2010.2,5.009]
[1742716766754,9.94789,2010.5,2010.2,5.009]
[1742716767069,9.9479,2010.5,2010.2,5.009]
[1742716767268,4.9739,2010.5,2010.2,5.009]
[1742716767467,4.9739,2010.5,2010.3,26.292]
[1742716768143,4.97364,2010.6,2010.4,0.10779746]
[1742716769367,4.97371,2010.6,2010.4,0.10779746]
[1742716770085,4.97388,2010.5,2010.4,0.10779746]
[1742716770983,4.97371,2010.6,2010.4,0.10779746]
[1742716771367,5.7376,2010.8,2010.4,0.10779746]
[1742716771569,0.7644,2010.8,2010.5,4.97376]
[1742716771776,4.97322,2010.8,2010.6,4.963]
[1742716771975,4.97322,2010.8,2010.7,0.11675363]
[1742716773587,6.29721714,2010.8,2010.7,0.11675363]
[1742716776558,0.7909,2011.0,2010.7,0.11675363]
[1742716776759,4.97253,2011.1,2010.7,8.13971302]
[1742716777377,4.97253,2011.1,2010.7,8.08998363]
[1742716777990,4.97253,2011.1,2010.7,8.13971066]
[1742716778388,4.97193,2011.3,2010.9,4.97281]
[1742716778562,5.76266,2011.4,2011.0,5.06035084]
[1742716778767,4.97187,2011.4,2011.0,5.06035084]
[1742716778977,4.97191,2011.3,2011.1,26.295]
[1742716779166,4.97191,2011.3,2011.2,0.11310364]
[1742716779490,4.97215,2011.2,2011.1,26.295]